[Event "Titled Tuesday Blitz April 18 Late 2023"]
[White "Jaskolka, Tomasz"]
[Black "Ozalp, Burak"]
[WhiteFideId "1170791"]
[BlackFideId "6314210"]
[WhiteElo "2155"]
[BlackElo "2106"]
[Result "1-0"]
[Round "06"]
[TimeControl "180+2"]
[Date "2023.04.18"]
[WhiteClock "0:00:29"]
[BlackClock "0:00:09"]

1. d4 {[%clk 0:03:00]}  g6 {[%clk 0:02:58]} 2. e4 {[%clk 0:02:58]}  Bg7 {[%clk 0:02:57]} 3. Nf3 {[%clk 0:02:59]}  d6 {[%clk 0:02:57]} 4. Nc3 {[%clk 0:02:59]}  a6 {[%clk 0:02:57]} 5. Bd3 {[%clk 0:02:56]}  Nd7 {[%clk 0:02:54]} 6. Be3 {[%clk 0:02:55]}  b5 {[%clk 0:02:52]} 7. a3 {[%clk 0:02:55]}  Bb7 {[%clk 0:02:52]} 8. Qd2 {[%clk 0:02:55]}  Rc8 {[%clk 0:02:52]} 9. Rd1 {[%clk 0:02:50]}  c5 {[%clk 0:02:51]} 10. dxc5 {[%clk 0:02:51]}  Nxc5 {[%clk 0:02:52]} 11. O-O {[%clk 0:02:49]}  Nf6 {[%clk 0:02:24]} 12. Rfe1 {[%clk 0:02:38]}  O-O {[%clk 0:02:24]} 13. Bh6 {[%clk 0:02:35]}  Qd7 {[%clk 0:02:09]} 14. h3 {[%clk 0:02:29]}  Ne6 {[%clk 0:01:58]} 15. Bxg7 {[%clk 0:02:27]}  Kxg7 {[%clk 0:01:59]} 16. Qe3 {[%clk 0:02:20]}  Qc7 {[%clk 0:01:48]} 17. Bf1 {[%clk 0:02:03]}  Qc5 {[%clk 0:01:43]} 18. Nd4 {[%clk 0:01:56]}  Nxd4 {[%clk 0:01:41]} 19. Qxd4 {[%clk 0:01:57]}  Qxd4 {[%clk 0:01:41]} 20. Rxd4 {[%clk 0:01:58]}  Rc5 {[%clk 0:01:38]} 21. f3 {[%clk 0:01:57]}  Rfc8 {[%clk 0:01:38]} 22. Kf2 {[%clk 0:01:54]}  R8c7 {[%clk 0:01:35]} 23. Rd2 {[%clk 0:01:54]}  Bc8 {[%clk 0:01:28]} 24. Bd3 {[%clk 0:01:53]}  Be6 {[%clk 0:01:24]} 25. Ne2 {[%clk 0:01:45]}  Bc4 {[%clk 0:01:16]} 26. Nd4 {[%clk 0:01:43]}  Bxd3 {[%clk 0:01:02]} 27. cxd3 {[%clk 0:01:43]}  Nd7 {[%clk 0:01:03]} 28. f4 {[%clk 0:01:40]}  e5 {[%clk 0:01:01]} 29. Ne2 {[%clk 0:01:39]}  Rc2 {[%clk 0:01:00]} 30. Red1 {[%clk 0:01:40]}  Rxd2 {[%clk 0:00:54]} 31. Rxd2 {[%clk 0:01:40]}  Nc5 {[%clk 0:00:55]} 32. Nc3 {[%clk 0:01:19]}  Nb3 {[%clk 0:00:50]} 33. Rd1 {[%clk 0:01:19]}  exf4 {[%clk 0:00:50]} 34. h4 {[%clk 0:01:15]}  h6 {[%clk 0:00:50]} 35. Kf3 {[%clk 0:01:13]}  g5 {[%clk 0:00:50]} 36. hxg5 {[%clk 0:01:14]}  hxg5 {[%clk 0:00:51]} 37. Rh1 {[%clk 0:01:13]}  a5 {[%clk 0:00:40]} 38. Kg4 {[%clk 0:01:12]}  b4 {[%clk 0:00:38]} 39. axb4 {[%clk 0:01:13]}  axb4 {[%clk 0:00:39]} 40. Nd5 {[%clk 0:01:13]}  Rc2 {[%clk 0:00:36]} 41. Kxg5 {[%clk 0:01:13]}  Rxg2+ {[%clk 0:00:28]} 42. Kxf4 {[%clk 0:01:03]}  Nd4 {[%clk 0:00:27]} 43. Nxb4 {[%clk 0:00:57]}  Ne6+ {[%clk 0:00:25]} 44. Ke3 {[%clk 0:00:55]}  Rxb2 {[%clk 0:00:25]} 45. Nd5 {[%clk 0:00:55]}  Rg2 {[%clk 0:00:24]} 46. Rf1 {[%clk 0:00:53]}  Rg3+ {[%clk 0:00:24]} 47. Kd2 {[%clk 0:00:51]}  Nc5 {[%clk 0:00:22]} 48. Nf4 {[%clk 0:00:51]}  Kh6 {[%clk 0:00:18]} 49. Kc3 {[%clk 0:00:36]}  Nxe4+ {[%clk 0:00:18]} 50. Kd4 {[%clk 0:00:36]}  Ng5 {[%clk 0:00:17]} 51. Rh1+ {[%clk 0:00:35]}  Nh3 {[%clk 0:00:12]} 52. Rxh3+ {[%clk 0:00:35]}  Rxh3 {[%clk 0:00:12]} 53. Nxh3 {[%clk 0:00:36]}  Kh5 {[%clk 0:00:12]} 54. Nf4+ {[%clk 0:00:36]}  Kg4 {[%clk 0:00:13]} 55. Nd5 {[%clk 0:00:36]}  f5 {[%clk 0:00:13]} 56. Ne3+ {[%clk 0:00:36]}  Kg5 {[%clk 0:00:11]} 57. Nf1 {[%clk 0:00:35]}  Kf4 {[%clk 0:00:11]} 58. Kd5 {[%clk 0:00:35]}  Kf3 {[%clk 0:00:11]} 59. d4 {[%clk 0:00:34]}  f4 {[%clk 0:00:11]} 60. Kxd6 {[%clk 0:00:32]}  Ke2 {[%clk 0:00:11]} 61. Nh2 {[%clk 0:00:32]}  Kf2 {[%clk 0:00:11]} 62. Ke5 {[%clk 0:00:30]}  Kg3 {[%clk 0:00:11]} 63. d5 {[%clk 0:00:29]}  f3 {[%clk 0:00:08]} 64. Nxf3 {[%clk 0:00:29]}  Kxf3 {[%clk 0:00:09]} 65. d6 {[%clk 0:00:29]} 1-0


[Site "https://www.chess.com"]

[Event "Titled Tuesday Blitz April 18 Late 2023"]
[White "Kubatko, Ivan"]
[Black "Boder, Jan"]
[WhiteFideId "24111473"]
[BlackFideId "16243226"]
[WhiteElo "2285"]
[BlackElo "2241"]
[Result "1-0"]
[Round "06"]
[TimeControl "180+2"]
[Date "2023.04.18"]
[WhiteClock "0:00:11"]
[BlackClock "0:00:04"]

1. e4 {[%clk 0:02:55]}  c5 {[%clk 0:03:00]} 2. c3 {[%clk 0:02:51]}  Nf6 {[%clk 0:02:59]} 3. e5 {[%clk 0:02:51]}  Nd5 {[%clk 0:03:00]} 4. g3 {[%clk 0:02:51]}  Nc6 {[%clk 0:02:59]} 5. Bg2 {[%clk 0:02:51]}  e6 {[%clk 0:02:59]} 6. Nf3 {[%clk 0:02:51]}  d6 {[%clk 0:02:59]} 7. exd6 {[%clk 0:02:51]}  Bxd6 {[%clk 0:03:00]} 8. d4 {[%clk 0:02:50]}  cxd4 {[%clk 0:03:00]} 9. Nxd4 {[%clk 0:02:50]}  Nxd4 {[%clk 0:03:00]} 10. Qxd4 {[%clk 0:02:51]}  O-O {[%clk 0:03:00]} 11. O-O {[%clk 0:02:51]}  Qc7 {[%clk 0:02:41]} 12. Nd2 {[%clk 0:02:45]}  Be5 {[%clk 0:02:37]} 13. Qc4 {[%clk 0:02:13]}  Qxc4 {[%clk 0:02:28]} 14. Nxc4 {[%clk 0:02:12]}  Bf6 {[%clk 0:02:29]} 15. Nd6 {[%clk 0:02:09]}  Rd8 {[%clk 0:02:19]} 16. Nxc8 {[%clk 0:02:07]}  Raxc8 {[%clk 0:02:20]} 17. Rd1 {[%clk 0:02:06]}  Nxc3 {[%clk 0:01:43]} 18. Rxd8+ {[%clk 0:02:04]}  Rxd8 {[%clk 0:01:44]} 19. bxc3 {[%clk 0:01:58]}  Rd1+ {[%clk 0:01:44]} 20. Bf1 {[%clk 0:01:58]}  Bxc3 {[%clk 0:01:45]} 21. Rb1 {[%clk 0:01:57]}  f6 {[%clk 0:01:45]} 22. Kg2 {[%clk 0:01:35]}  Bd2 {[%clk 0:01:44]} 23. Bc4 {[%clk 0:01:10]}  b6 {[%clk 0:01:20]} 24. Bxe6+ {[%clk 0:01:07]}  Kh8 {[%clk 0:01:19]} 25. Rb2 {[%clk 0:00:30]}  Bxc1 {[%clk 0:01:17]} 26. Rc2 {[%clk 0:00:30]}  g6 {[%clk 0:01:04]} 27. Rc8+ {[%clk 0:00:28]}  Kg7 {[%clk 0:01:04]} 28. Rc7+ {[%clk 0:00:28]}  Kh6 {[%clk 0:01:01]} 29. Bg8 {[%clk 0:00:21]}  Kg5 {[%clk 0:00:59]} 30. h4+ {[%clk 0:00:20]}  Kf5 {[%clk 0:01:00]} 31. Bxh7 {[%clk 0:00:20]}  a5 {[%clk 0:00:42]} 32. h5 {[%clk 0:00:20]}  Bh6 {[%clk 0:00:23]} 33. hxg6 {[%clk 0:00:19]}  Ke6 {[%clk 0:00:20]} 34. g7 {[%clk 0:00:18]}  Bxg7 {[%clk 0:00:18]} 35. Rxg7 {[%clk 0:00:19]}  Rd2 {[%clk 0:00:19]} 36. Bg8+ {[%clk 0:00:18]}  Kf5 {[%clk 0:00:18]} 37. Rb7 {[%clk 0:00:19]}  Rb2 {[%clk 0:00:18]} 38. Bd5 {[%clk 0:00:15]}  b5 {[%clk 0:00:18]} 39. Ra7 {[%clk 0:00:15]}  a4 {[%clk 0:00:18]} 40. Rb7 {[%clk 0:00:15]}  b4 {[%clk 0:00:17]} 41. Rb5 {[%clk 0:00:14]}  Kg6 {[%clk 0:00:15]} 42. Kf3 {[%clk 0:00:13]}  f5 {[%clk 0:00:05]} 43. Rb6+ {[%clk 0:00:13]}  Kg5 {[%clk 0:00:04]} 44. Ra6 {[%clk 0:00:12]}  b3 {[%clk 0:00:03]} 45. axb3 {[%clk 0:00:12]}  axb3 {[%clk 0:00:03]} 46. Rb6 {[%clk 0:00:13]}  f4 {[%clk 0:00:03]} 47. Rxb3 {[%clk 0:00:11]}  Kf5 {[%clk 0:00:04]} 48. Rxb2 {[%clk 0:00:11]}  fxg3 {[%clk 0:00:04]} 49. fxg3 {[%clk 0:00:11]}  Ke5 {[%clk 0:00:04]} 50. Be4 {[%clk 0:00:11]} 1-0


[Site "https://www.chess.com"]

[Event "Titled Tuesday Blitz April 18 Late 2023"]
[White "WindWhistler11"]
[Black "lluiss"]
[WhiteElo "2435"]
[BlackElo "2305"]
[Result "0-1"]
[Round "06"]
[TimeControl "180+2"]
[Date "2023.04.18"]
[WhiteClock "0:00:08"]
[BlackClock "0:00:43"]

1. b4 {[%clk 0:02:51]}  Nf6 {[%clk 0:02:58]} 2. e3 {[%clk 0:02:50]}  g6 {[%clk 0:02:58]} 3. Bb2 {[%clk 0:02:50]}  Bg7 {[%clk 0:02:58]} 4. c4 {[%clk 0:02:51]}  O-O {[%clk 0:02:58]} 5. Nf3 {[%clk 0:02:51]}  d6 {[%clk 0:02:58]} 6. Be2 {[%clk 0:02:51]}  e5 {[%clk 0:02:58]} 7. d4 {[%clk 0:02:50]}  e4 {[%clk 0:02:57]} 8. Nfd2 {[%clk 0:02:51]}  Re8 {[%clk 0:02:57]} 9. Nc3 {[%clk 0:02:52]}  h5 {[%clk 0:02:55]} 10. O-O {[%clk 0:02:50]}  Bf5 {[%clk 0:02:50]} 11. b5 {[%clk 0:02:49]}  Nbd7 {[%clk 0:02:50]} 12. a4 {[%clk 0:02:50]}  Bg4 {[%clk 0:02:38]} 13. a5 {[%clk 0:02:47]}  Bxe2 {[%clk 0:02:37]} 14. Qxe2 {[%clk 0:02:48]}  Nf8 {[%clk 0:02:25]} 15. a6 {[%clk 0:02:45]}  b6 {[%clk 0:02:23]} 16. Nd5 {[%clk 0:02:43]}  Nxd5 {[%clk 0:02:13]} 17. cxd5 {[%clk 0:02:44]}  Nh7 {[%clk 0:02:13]} 18. Rac1 {[%clk 0:02:30]}  Nf6 {[%clk 0:02:13]} 19. Qc4 {[%clk 0:02:27]}  Re7 {[%clk 0:02:05]} 20. f4 {[%clk 0:02:10]}  exf3 {[%clk 0:02:01]} 21. Rxf3 {[%clk 0:02:09]}  Ng4 {[%clk 0:01:54]} 22. e4 {[%clk 0:02:02]}  Bh6 {[%clk 0:01:51]} 23. Bc3 {[%clk 0:01:44]}  Bxd2 {[%clk 0:01:49]} 24. Bxd2 {[%clk 0:01:45]}  Rxe4 {[%clk 0:01:49]} 25. h3 {[%clk 0:01:45]}  Ne5 {[%clk 0:01:35]} 26. Qxc7 {[%clk 0:01:26]}  Nxf3+ {[%clk 0:01:29]} 27. gxf3 {[%clk 0:01:25]}  Qxc7 {[%clk 0:01:14]} 28. Rxc7 {[%clk 0:01:21]}  Rxd4 {[%clk 0:01:14]} 29. Bg5 {[%clk 0:00:41]}  Rxd5 {[%clk 0:01:13]} 30. Be7 {[%clk 0:00:37]}  Rxb5 {[%clk 0:01:06]} 31. Bxd6 {[%clk 0:00:36]}  Rd5 {[%clk 0:01:04]} 32. Bg3 {[%clk 0:00:33]}  Ra5 {[%clk 0:01:00]} 33. f4 {[%clk 0:00:19]}  Rxa6 {[%clk 0:00:59]} 34. f5 {[%clk 0:00:20]}  gxf5 {[%clk 0:00:56]} 35. Kf2 {[%clk 0:00:19]}  Ra4 {[%clk 0:00:49]} 36. Be5 {[%clk 0:00:08]}  Re8 {[%clk 0:00:43]} 0-1


[Site "https://www.chess.com"]

[Event "Titled Tuesday Blitz April 18 Late 2023"]
[White "Marczuk, Dominik"]
[Black "Nemsko"]
[WhiteFideId "1111264"]
[WhiteElo "2174"]
[BlackElo "2298"]
[Result "1-0"]
[Round "06"]
[TimeControl "180+2"]
[Date "2023.04.18"]
[WhiteClock "0:00:17"]
[BlackClock "0:00:02"]

1. e4 {[%clk 0:02:57]}  e5 {[%clk 0:02:58]} 2. Nf3 {[%clk 0:02:57]}  Nc6 {[%clk 0:02:59]} 3. Bc4 {[%clk 0:02:57]}  Bc5 {[%clk 0:02:58]} 4. O-O {[%clk 0:02:57]}  d6 {[%clk 0:02:47]} 5. c3 {[%clk 0:02:56]}  Bb6 {[%clk 0:02:44]} 6. Bb3 {[%clk 0:02:50]}  Nf6 {[%clk 0:02:43]} 7. d3 {[%clk 0:02:46]}  h6 {[%clk 0:02:39]} 8. Nbd2 {[%clk 0:02:44]}  O-O {[%clk 0:02:39]} 9. Re1 {[%clk 0:02:43]}  Be6 {[%clk 0:02:36]} 10. Nf1 {[%clk 0:02:41]}  Ne7 {[%clk 0:02:36]} 11. Ng3 {[%clk 0:02:40]}  Ng6 {[%clk 0:02:29]} 12. Bc2 {[%clk 0:02:39]}  c6 {[%clk 0:02:24]} 13. h3 {[%clk 0:02:33]}  Qd7 {[%clk 0:02:01]} 14. d4 {[%clk 0:02:25]}  Rfe8 {[%clk 0:01:40]} 15. Be3 {[%clk 0:02:16]}  Rad8 {[%clk 0:01:19]} 16. Qd2 {[%clk 0:02:08]}  Qc7 {[%clk 0:01:07]} 17. Nf5 {[%clk 0:01:47]}  Bxf5 {[%clk 0:01:05]} 18. exf5 {[%clk 0:01:47]}  Nf8 {[%clk 0:01:02]} 19. Bxh6 {[%clk 0:01:15]}  gxh6 {[%clk 0:00:58]} 20. Qxh6 {[%clk 0:01:14]}  N8h7 {[%clk 0:00:49]} 21. g4 {[%clk 0:00:50]}  Kh8 {[%clk 0:00:20]} 22. g5 {[%clk 0:00:48]}  Rg8 {[%clk 0:00:21]} 23. Kh1 {[%clk 0:00:45]}  e4 {[%clk 0:00:17]} 24. gxf6 {[%clk 0:00:31]}  d5 {[%clk 0:00:17]} 25. Rg1 {[%clk 0:00:18]}  Qd6 {[%clk 0:00:02]} 26. Rg7 {[%clk 0:00:17]} 1-0


[Site "https://www.chess.com"]

[Event "Titled Tuesday Blitz April 18 Late 2023"]
[White "Antonio, Jorge Carlos"]
[Black "Kielinkei"]
[WhiteFideId "113190"]
[WhiteElo "2247"]
[BlackElo "2424"]
[Result "0-1"]
[Round "06"]
[TimeControl "180+2"]
[Date "2023.04.18"]
[WhiteClock "0:01:08"]
[BlackClock "0:01:10"]

1. d4 {[%clk 0:03:00]}  Nf6 {[%clk 0:02:59]} 2. Nf3 {[%clk 0:03:00]}  d5 {[%clk 0:02:57]} 3. Bf4 {[%clk 0:03:00]}  c5 {[%clk 0:02:56]} 4. e3 {[%clk 0:02:59]}  Nc6 {[%clk 0:02:54]} 5. Nbd2 {[%clk 0:02:59]}  Qb6 {[%clk 0:02:52]} 6. Rb1 {[%clk 0:02:57]}  cxd4 {[%clk 0:02:50]} 7. exd4 {[%clk 0:02:56]}  Nxd4 {[%clk 0:02:48]} 8. Nxd4 {[%clk 0:02:52]}  Qxd4 {[%clk 0:02:48]} 9. Be3 {[%clk 0:02:52]}  Qe5 {[%clk 0:02:38]} 10. Nf3 {[%clk 0:02:49]}  Qc7 {[%clk 0:02:36]} 11. Bb5+ {[%clk 0:02:45]}  Bd7 {[%clk 0:02:36]} 12. Bxd7+ {[%clk 0:02:44]}  Qxd7 {[%clk 0:02:34]} 13. O-O {[%clk 0:02:37]}  e6 {[%clk 0:02:34]} 14. Bd4 {[%clk 0:02:33]}  Be7 {[%clk 0:02:33]} 15. Ne5 {[%clk 0:02:32]}  Qc7 {[%clk 0:02:33]} 16. c3 {[%clk 0:02:29]}  O-O {[%clk 0:02:32]} 17. Qf3 {[%clk 0:02:23]}  Bc5 {[%clk 0:02:29]} 18. Bxc5 {[%clk 0:02:14]}  Qxc5 {[%clk 0:02:29]} 19. g4 {[%clk 0:02:03]}  Qc7 {[%clk 0:02:28]} 20. Rfe1 {[%clk 0:02:02]}  Nd7 {[%clk 0:02:27]} 21. Nxd7 {[%clk 0:02:00]}  Qxd7 {[%clk 0:02:27]} 22. h3 {[%clk 0:02:00]}  Rac8 {[%clk 0:02:21]} 23. Rbd1 {[%clk 0:01:59]}  Qa4 {[%clk 0:02:17]} 24. a3 {[%clk 0:01:57]}  Qb5 {[%clk 0:02:13]} 25. Rd2 {[%clk 0:01:55]}  a5 {[%clk 0:02:10]} 26. h4 {[%clk 0:01:52]}  Rc4 {[%clk 0:02:06]} 27. Kg2 {[%clk 0:01:46]}  Qa4 {[%clk 0:02:04]} 28. Kg3 {[%clk 0:01:46]}  Rd8 {[%clk 0:01:32]} 29. h5 {[%clk 0:01:44]}  h6 {[%clk 0:01:31]} 30. g5 {[%clk 0:01:41]}  hxg5 {[%clk 0:01:24]} 31. h6 {[%clk 0:01:41]}  gxh6 {[%clk 0:01:20]} 32. Rh1 {[%clk 0:01:39]}  Rh4 {[%clk 0:01:18]} 33. Rxh4 {[%clk 0:01:18]}  Qxh4+ {[%clk 0:01:17]} 34. Kg2 {[%clk 0:01:18]}  Qf4 {[%clk 0:01:10]} 35. Qxf4 {[%clk 0:01:15]}  gxf4 {[%clk 0:01:10]} 36. Rd4 {[%clk 0:01:15]}  e5 {[%clk 0:01:09]} 37. Ra4 {[%clk 0:01:11]}  b6 {[%clk 0:01:10]} 38. b4 {[%clk 0:01:11]}  axb4 {[%clk 0:01:10]} 39. cxb4 {[%clk 0:01:11]}  d4 {[%clk 0:01:10]} 40. Kf3 {[%clk 0:01:08]}  d3 {[%clk 0:01:10]} 0-1


[Site "https://www.chess.com"]

[Event "Titled Tuesday Blitz April 18 Late 2023"]
[White "Estremera Panos, Sergio"]
[Black "Papayan, Oleg"]
[WhiteFideId "2200864"]
[BlackFideId "4193911"]
[WhiteElo "2253"]
[BlackElo "2153"]
[Result "0-1"]
[Round "06"]
[TimeControl "180+2"]
[Date "2023.04.18"]
[WhiteClock "0:01:50"]
[BlackClock "0:00:52"]

1. d4 {[%clk 0:03:00]}  Nf6 {[%clk 0:02:50]} 2. c4 {[%clk 0:03:00]}  e6 {[%clk 0:02:49]} 3. Nc3 {[%clk 0:02:56]}  Bb4 {[%clk 0:02:49]} 4. e3 {[%clk 0:02:56]}  O-O {[%clk 0:02:49]} 5. Bd3 {[%clk 0:02:56]}  d5 {[%clk 0:02:49]} 6. Nf3 {[%clk 0:02:55]}  c5 {[%clk 0:02:49]} 7. cxd5 {[%clk 0:02:53]}  Nxd5 {[%clk 0:02:35]} 8. Bd2 {[%clk 0:02:51]}  cxd4 {[%clk 0:02:33]} 9. exd4 {[%clk 0:02:49]}  b6 {[%clk 0:02:22]} 10. O-O {[%clk 0:02:49]}  Bb7 {[%clk 0:02:22]} 11. Qc2 {[%clk 0:02:45]}  Nf6 {[%clk 0:02:16]} 12. Bg5 {[%clk 0:02:45]}  h6 {[%clk 0:02:01]} 13. Bh4 {[%clk 0:02:45]}  Bxf3 {[%clk 0:01:49]} 14. gxf3 {[%clk 0:02:44]}  Qxd4 {[%clk 0:01:49]} 15. Bg3 {[%clk 0:02:40]}  Nbd7 {[%clk 0:01:45]} 16. Rad1 {[%clk 0:02:39]}  Qc5 {[%clk 0:01:39]} 17. a3 {[%clk 0:02:30]}  Bxc3 {[%clk 0:01:39]} 18. bxc3 {[%clk 0:02:30]}  Rfc8 {[%clk 0:01:22]} 19. Be4 {[%clk 0:02:11]}  Nxe4 {[%clk 0:01:14]} 20. Qxe4 {[%clk 0:02:11]}  Nf6 {[%clk 0:01:12]} 21. Qb7 {[%clk 0:02:10]}  Qxc3 {[%clk 0:01:07]} 22. Rd6 {[%clk 0:02:06]}  Qxa3 {[%clk 0:01:03]} 23. Rfd1 {[%clk 0:02:04]}  Nd5 {[%clk 0:00:55]} 24. Rd7 {[%clk 0:01:59]}  Qxf3 {[%clk 0:00:56]} 25. Rd4 {[%clk 0:01:50]}  Rc1+ {[%clk 0:00:52]} 0-1


[Site "https://www.chess.com"]

[Event "Titled Tuesday Blitz April 18 Late 2023"]
[White "Osmonbekov, Talaibek"]
[Black "Aranda Marin, Cristian"]
[WhiteFideId "2017253"]
[BlackFideId "2205513"]
[WhiteElo "2135"]
[BlackElo "2233"]
[Result "0-1"]
[Round "06"]
[TimeControl "180+2"]
[Date "2023.04.18"]
[WhiteClock "0:00:07"]
[BlackClock "0:00:32"]

1. d4 {[%clk 0:03:00]}  d6 {[%clk 0:02:54]} 2. Bf4 {[%clk 0:03:01]}  g6 {[%clk 0:02:53]} 3. Nc3 {[%clk 0:03:01]}  Bg7 {[%clk 0:02:52]} 4. Nf3 {[%clk 0:03:02]}  Bg4 {[%clk 0:02:50]} 5. Qd2 {[%clk 0:02:57]}  Nd7 {[%clk 0:02:49]} 6. O-O-O {[%clk 0:02:47]}  c6 {[%clk 0:02:48]} 7. e4 {[%clk 0:02:45]}  Qa5 {[%clk 0:02:43]} 8. Kb1 {[%clk 0:02:28]}  Bxf3 {[%clk 0:02:27]} 9. gxf3 {[%clk 0:02:28]}  Ngf6 {[%clk 0:02:25]} 10. h4 {[%clk 0:02:25]}  O-O-O {[%clk 0:02:15]} 11. Bh3 {[%clk 0:01:56]}  Kb8 {[%clk 0:02:11]} 12. Be3 {[%clk 0:01:36]}  Nb6 {[%clk 0:02:00]} 13. Qe2 {[%clk 0:01:23]}  Ne8 {[%clk 0:01:19]} 14. Rhg1 {[%clk 0:01:15]}  Nc7 {[%clk 0:01:18]} 15. Rg5 {[%clk 0:01:13]}  d5 {[%clk 0:01:10]} 16. a3 {[%clk 0:00:41]}  e6 {[%clk 0:00:47]} 17. Ka2 {[%clk 0:00:24]}  Nc4 {[%clk 0:00:39]} 18. Qxc4 {[%clk 0:00:21]}  h6 {[%clk 0:00:39]} 19. Qe2 {[%clk 0:00:16]}  hxg5 {[%clk 0:00:38]} 20. Bxg5 {[%clk 0:00:15]}  Rc8 {[%clk 0:00:39]} 21. Bf1 {[%clk 0:00:12]}  b5 {[%clk 0:00:33]} 22. b4 {[%clk 0:00:10]}  Qb6 {[%clk 0:00:33]} 23. Bf4 {[%clk 0:00:07]}  Kb7 {[%clk 0:00:32]} 0-1


[Site "https://www.chess.com"]

[Event "Titled Tuesday Blitz April 18 Late 2023"]
[White "Torres Dominguez, David"]
[Black "Gerbelli Neto, Eduardo"]
[WhiteFideId "2220857"]
[BlackFideId "2103281"]
[WhiteElo "1999"]
[BlackElo "2178"]
[Result "1/2-1/2"]
[Round "06"]
[TimeControl "180+2"]
[Date "2023.04.18"]
[WhiteClock "0:00:09"]
[BlackClock "0:00:25"]

1. e4 {[%clk 0:03:00]}  e5 {[%clk 0:02:59]} 2. Bc4 {[%clk 0:03:00]}  Nf6 {[%clk 0:02:59]} 3. Nc3 {[%clk 0:03:00]}  Nxe4 {[%clk 0:02:59]} 4. Qh5 {[%clk 0:03:00]}  Nd6 {[%clk 0:02:59]} 5. Qxe5+ {[%clk 0:03:00]}  Qe7 {[%clk 0:02:58]} 6. Qxe7+ {[%clk 0:03:00]}  Bxe7 {[%clk 0:02:59]} 7. Be2 {[%clk 0:03:00]}  c6 {[%clk 0:02:52]} 8. Nf3 {[%clk 0:02:58]}  O-O {[%clk 0:02:51]} 9. d4 {[%clk 0:02:57]}  Bf6 {[%clk 0:02:51]} 10. Bf4 {[%clk 0:02:50]}  Nf5 {[%clk 0:02:49]} 11. O-O-O {[%clk 0:02:49]}  d5 {[%clk 0:02:50]} 12. g4 {[%clk 0:02:38]}  Nh4 {[%clk 0:02:38]} 13. g5 {[%clk 0:02:00]}  Nxf3 {[%clk 0:02:37]} 14. gxf6 {[%clk 0:01:54]}  Nh4 {[%clk 0:02:30]} 15. fxg7 {[%clk 0:01:44]}  Re8 {[%clk 0:02:30]} 16. Bh5 {[%clk 0:01:32]}  Ng6 {[%clk 0:02:26]} 17. Bg3 {[%clk 0:01:30]}  Bf5 {[%clk 0:02:23]} 18. Rhe1 {[%clk 0:01:26]}  Nd7 {[%clk 0:02:23]} 19. Kd2 {[%clk 0:01:04]}  Kxg7 {[%clk 0:02:23]} 20. Rxe8 {[%clk 0:01:03]}  Rxe8 {[%clk 0:02:22]} 21. Bf3 {[%clk 0:00:58]}  Nf6 {[%clk 0:02:17]} 22. Rg1 {[%clk 0:00:35]}  Ne4+ {[%clk 0:01:45]} 23. Bxe4 {[%clk 0:00:33]}  dxe4 {[%clk 0:01:45]} 24. Ke3 {[%clk 0:00:29]}  f6 {[%clk 0:01:42]} 25. Ne2 {[%clk 0:00:25]}  Kf7 {[%clk 0:01:41]} 26. Nf4 {[%clk 0:00:22]}  Ne7 {[%clk 0:01:38]} 27. c3 {[%clk 0:00:21]}  Nd5+ {[%clk 0:01:29]} 28. Nxd5 {[%clk 0:00:20]}  cxd5 {[%clk 0:01:30]} 29. Bf4 {[%clk 0:00:19]}  Rg8 {[%clk 0:01:24]} 30. Rxg8 {[%clk 0:00:16]}  Kxg8 {[%clk 0:01:25]} 31. Bb8 {[%clk 0:00:16]}  a6 {[%clk 0:01:25]} 32. Kf4 {[%clk 0:00:17]}  Bg6 {[%clk 0:01:23]} 33. Bd6 {[%clk 0:00:17]}  Kf7 {[%clk 0:01:23]} 34. h4 {[%clk 0:00:16]}  Ke6 {[%clk 0:01:23]} 35. Bc7 {[%clk 0:00:16]}  Kd7 {[%clk 0:01:22]} 36. Bb8 {[%clk 0:00:13]}  b6 {[%clk 0:01:21]} 37. Ke3 {[%clk 0:00:12]}  Bh5 {[%clk 0:01:16]} 38. Bg3 {[%clk 0:00:13]}  Kc6 {[%clk 0:01:15]} 39. Kd2 {[%clk 0:00:11]}  Kb5 {[%clk 0:01:16]} 40. b3 {[%clk 0:00:11]}  a5 {[%clk 0:01:16]} 41. Kc2 {[%clk 0:00:11]}  a4 {[%clk 0:01:13]} 42. Kb2 {[%clk 0:00:08]}  Bd1 {[%clk 0:01:08]} 43. Ka3 {[%clk 0:00:07]}  axb3 {[%clk 0:01:08]} 44. axb3 {[%clk 0:00:07]}  Kc6 {[%clk 0:01:03]} 45. c4 {[%clk 0:00:07]}  Be2 {[%clk 0:01:01]} 46. Kb4 {[%clk 0:00:07]}  Bd1 {[%clk 0:00:54]} 47. Kc3 {[%clk 0:00:05]}  Be2 {[%clk 0:00:52]} 48. Kb4 {[%clk 0:00:06]}  Bg4 {[%clk 0:00:39]} 49. Kc3 {[%clk 0:00:06]}  Be6 {[%clk 0:00:39]} 50. Kb4 {[%clk 0:00:06]}  Bf7 {[%clk 0:00:32]} 51. Bf4 {[%clk 0:00:07]}  Be8 {[%clk 0:00:31]} 52. Bg3 {[%clk 0:00:07]}  Bd7 {[%clk 0:00:25]} 53. Bf4 {[%clk 0:00:08]}  Be6 {[%clk 0:00:25]} 54. Bg3 {[%clk 0:00:08]}  Bd7 {[%clk 0:00:25]} 55. Bf4 {[%clk 0:00:09]}  Be6 {[%clk 0:00:25]} 56. Bg3 {[%clk 0:00:09]} 1/2-1/2


[Site "https://www.chess.com"]